bitfinex/quotes_BTCUSD_20240905
["timestamp","ask_amount","ask_price","bid_price","bid_amount"]
[1725562620231,0.17712,56720.0,56719.0,0.0042]
[1725562620458,0.529729,56720.0,56719.0,0.0042]
[1725562620669,0.529729,56720.0,56719.0,0.0072]
[1725562620899,1.516647,56720.0,56719.0,0.0072]
[1725562621544,1.516647,56720.0,56719.0,0.007]
[1725562623746,1.869256,56720.0,56719.0,0.007]
[1725562623981,2.00502831,56720.0,56719.0,0.007]
[1725562624202,2.58828849,56720.0,56719.0,0.007]
[1725562624430,2.53554435,56720.0,56719.0,0.007]
[1725562624653,2.13459939,56720.0,56719.0,0.007]
[1725562624884,2.07204491,56720.0,56719.0,0.007]
[1725562625127,2.03357069,56720.0,56719.0,0.007]
[1725562625353,2.07225153,56720.0,56719.0,0.004]
[1725562625547,2.07225153,56720.0,56710.0,0.0002]
[1725562625548,1.006562,56711.0,56710.0,0.0002]
[1725562626556,0.1242,56719.0,56717.0,0.0002]
[1725562626753,0.528935,56718.0,56717.0,0.0002]
[1725562627209,0.881559,56718.0,56717.0,0.0002]
[1725562628664,0.881559,56718.0,56715.0,0.0002]
[1725562628665,0.881585,56716.0,56715.0,0.0002]
[1725562628917,0.881585,56716.0,56714.0,0.0002]
[1725562629206,0.998,56715.0,56714.0,0.0002]
[1725562629397,0.176338,56709.0,56708.0,0.0002]
[1725562629637,0.529015,56709.0,56708.0,0.0002]
[1725562629869,0.648424,56708.0,56707.0,0.001832]
[1725562630128,1.001107,56708.0,56707.0,0.001632]
[1725562630588,1.001107,56708.0,56707.0,0.001832]
[1725562632478,1.001107,56708.0,56707.0,0.007832]
[1725562632479,1.002107,56708.0,56707.0,0.007832]
[1725562632678,1.003107,56708.0,56707.0,0.014832]
[1725562634773,0.883707,56708.0,56707.0,0.014832]
[1725562634975,0.531024,56708.0,56707.0,0.014832]
[1725562635224,0.178341,56708.0,56707.0,0.014832]
[1725562635440,0.002,56708.0,56707.0,0.191177]
[1725562635700,0.002,56708.0,56707.0,0.014832]
[1725562635701,0.178341,56708.0,56707.0,0.014832]
[1725562635903,0.002,56708.0,56707.0,0.014832]
[1725562636323,0.002,56708.0,56707.0,0.173632]
[1725562636737,0.002,56708.0,56707.0,0.702667]
[1725562637160,0.002,56708.0,56707.0,1.055357]
[1725562637362,0.002,56708.0,56707.0,0.702667]
[1725562638203,0.002,56708.0,56707.0,0.014832]
[1725562638435,0.002,56708.0,56707.0,0.191177]
[1725562638634,0.80419357,56708.0,56707.0,0.014632]
[1725562638837,1.15687657,56708.0,56707.0,0.014632]
[1725562639061,1.50955957,56708.0,56707.0,0.014632]
[1725562639479,1.50855957,56708.0,56707.0,0.007632]
[1725562639691,1.52110583,56708.0,56707.0,0.001632]
[1725562639907,1.52210583,56708.0,56707.0,0.001632]
[1725562643694,1.24893626,56708.0,56707.0,0.001632]
[1725562643906,1.23539,56708.0,56707.0,0.001632]
[1725562645392,0.530024,56708.0,56707.0,0.001832]
[1725562645611,0.352667,56711.0,56707.0,0.001832]
[1725562645838,0.176339,56709.0,56707.0,0.001832]
[1725562646041,0.528993,56712.0,56711.0,0.0002]
[1725562646660,0.176326,56714.0,56713.0,0.0002]
[1725562646904,0.528972,56714.0,56713.0,0.0002]
[1725562648764,0.530972,56714.0,56713.0,0.0002]
[1725562649218,0.531972,56714.0,56713.0,0.0002]
[1725562650266,0.003,56714.0,56713.0,0.0002]
[1725562650490,0.179323,56714.0,56713.0,0.0002]
[1725562650753,0.003,56714.0,56713.0,0.0002]
[1725562650983,0.003,56714.0,56713.0,0.7970042]
[1725562651201,0.000816,56716.0,56715.0,0.52916]
[1725562651418,0.000816,56716.0,56715.0,0.8818]
[1725562652308,0.000816,56716.0,56715.0,1.34834]
[1725562652517,0.000816,56716.0,56715.0,1.49244]
[1725562652934,0.000816,56716.0,56715.0,1.49544]
[1725562653163,0.000816,56716.0,56715.0,1.49944]
[1725562658719,0.000816,56716.0,56715.0,1.50144]
[1725562659184,0.000816,56716.0,56715.0,1.49944]
[1725562661697,0.000816,56716.0,56715.0,1.50144]
[1725562662581,0.000816,56716.0,56715.0,1.85408]
[1725562664096,0.000816,56716.0,56715.0,1.85208]
[1725562666812,0.84,56728.0,56727.0,0.529047]
[1725562666813,0.5625376,56728.0,56727.0,0.529047]
[1725562667037,0.61191769,56728.0,56727.0,0.529047]
[1725562667266,0.5625376,56728.0,56727.0,0.529047]
[1725562668366,0.5725376,56728.0,56727.0,0.529047]
[1725562668574,0.5825376,56728.0,56727.0,0.530047]
[1725562670322,0.5833536,56728.0,56727.0,0.530047]
[1725562671401,0.5833536,56728.0,56727.0,0.881612]
[1725562671615,0.5633536,56728.0,56727.0,0.529047]
[1725562671821,0.5673536,56728.0,56727.0,0.529047]
[1725562672051,0.5673536,56728.0,56727.0,0.0002]
[1725562672487,0.5703536,56728.0,56727.0,0.0002]
[1725562672909,0.8635326,56728.0,56727.0,0.0002]
[1725562673128,0.6872536,56728.0,56727.0,0.0002]
[1725562673557,0.6842536,56728.0,56727.0,0.0002]
[1725562673814,0.6802536,56728.0,56727.0,0.0002]
[1725562674003,0.6802536,56728.0,56727.0,0.0042]
[1725562674223,0.8565326,56728.0,56727.0,0.0042]
[1725562674462,1.7083506,56728.0,56727.0,0.004]
[1725562674706,1.7083506,56728.0,56727.0,0.009]
[1725562674707,2.09835478,56728.0,56727.0,0.009]
[1725562675611,0.88149,56722.0,56721.0,0.0002]
[1725562675857,1.00409,56722.0,56721.0,0.0002]
[1725562677386,1.00509,56722.0,56721.0,0.0062]
[1725562677875,1.00509,56722.0,56721.0,0.0112]
[1725562677876,1.512886,56722.0,56721.0,0.0112]
[1725562679194,1.16029,56722.0,56721.0,0.0112]
[1725562681885,1.512886,56722.0,56721.0,0.0112]
[1725562682103,1.512886,56722.0,56721.0,0.011]
[1725562682571,1.54924365,56722.0,56721.0,0.011]
[1725562682788,1.90183965,56722.0,56721.0,0.011]
[1725562683232,2.97289468,56722.0,56721.0,0.011]
[1725562683458,2.97289468,56722.0,56715.0,0.001632]
[1725562683459,1.234219,56716.0,56715.0,0.001632]
[1725562683675,1.80268857,56716.0,56715.0,0.001632]
[1725562684751,1.77968857,56716.0,56715.0,0.001632]
[1725562684973,1.014285,56716.0,56715.0,0.002832]
[1725562686344,1.015285,56716.0,56715.0,0.002632]
[1725562686624,1.44265457,56716.0,56715.0,0.002632]
[1725562686844,1.80428857,56716.0,56715.0,0.002632]
[1725562687057,1.80628857,56716.0,56715.0,0.001632]
[1725562687290,1.81728857,56716.0,56715.0,0.002632]
[1725562687730,2.16992257,56716.0,56715.0,0.002632]
[1725562688016,2.21570485,56716.0,56715.0,0.002632]
[1725562688238,2.70393747,56716.0,56715.0,0.002632]
[1725562688485,2.16008857,56710.0,56709.0,0.001632]
[1725562688705,2.63575957,56710.0,56709.0,0.001632]
[1725562688920,2.73950845,56710.0,56709.0,0.001632]
[1725562689392,2.68679654,56710.0,56709.0,0.001632]
[1725562689856,2.63575957,56710.0,56709.0,0.001632]
[1725562690313,2.64575957,56710.0,56709.0,0.001632]
[1725562690548,2.29696727,56710.0,56709.0,0.001632]
[1725562692161,2.28696727,56710.0,56709.0,0.001632]
[1725562692837,2.30539944,56710.0,56709.0,0.001632]
[1725562693150,2.31539944,56710.0,56709.0,0.001632]
[1725562693586,2.30539944,56710.0,56709.0,0.001632]
[1725562694935,1.95272844,56710.0,56709.0,0.001632]
[1725562695874,0.93378787,56710.0,56709.0,0.001832]
[1725562697017,1.20695744,56710.0,56709.0,0.001832]
[1725562697473,1.30695744,56710.0,56709.0,0.001832]
[1725562697934,1.03378787,56710.0,56709.0,0.001832]
[1725562698927,1.31402644,56710.0,56709.0,0.001832]
[1725562699822,1.31402644,56710.0,56709.0,0.001632]
[1725562700054,1.66669744,56710.0,56709.0,0.001632]
[1725562700281,1.31402644,56710.0,56709.0,0.001632]
[1725562700727,1.04085687,56710.0,56709.0,0.001632]
[1725562702482,1.66669744,56710.0,56709.0,0.001632]
[1725562702921,1.31402644,56710.0,56709.0,0.001632]
[1725562703881,1.66669744,56710.0,56709.0,0.001632]
[1725562704334,1.31402644,56710.0,56709.0,0.001632]
[1725562707050,1.66669744,56710.0,56709.0,0.001632]
[1725562707281,1.31402644,56710.0,56709.0,0.001632]
[1725562710426,1.66669744,56710.0,56709.0,0.001632]
[1725562710866,1.91879744,56710.0,56709.0,0.001632]
[1725562714309,1.77869744,56710.0,56709.0,0.001632]
[1725562718739,1.92409744,56710.0,56709.0,0.001632]
[1725562722768,1.77869744,56710.0,56709.0,0.001632]
[1725562723642,2.48403944,56710.0,56709.0,0.001632]
[1725562723861,3.89050789,56710.0,56709.0,0.001632]
[1725562724130,3.92225655,56710.0,56709.0,0.001632]
[1725562724352,3.79034579,56710.0,56709.0,0.001632]
[1725562724802,3.08669335,56710.0,56709.0,0.001632]
[1725562725013,2.86169935,56710.0,56709.0,0.001632]
[1725562729106,3.21437035,56710.0,56709.0,0.001632]
[1725562731557,3.21518635,56710.0,56709.0,0.001632]
[1725562731771,3.26523982,56710.0,56709.0,0.001632]
[1725562732405,3.31427679,56710.0,56709.0,0.001632]
[1725562732658,3.33427679,56710.0,56709.0,0.001632]
[1725562733091,3.49296188,56710.0,56709.0,0.001632]
[1725562733779,3.33427679,56710.0,56709.0,0.001632]
[1725562734715,1.875773,56708.0,56707.0,0.001632]
[1725562734955,0.893555,56705.0,56704.0,0.001632]
[1725562735163,2.49484495,56705.0,56704.0,0.001632]
[1725562735370,2.51784495,56705.0,56704.0,0.001632]
[1725562735608,4.00634845,56705.0,56704.0,0.001632]
[1725562736043,4.15054845,56705.0,56704.0,0.001632]
[1725562736487,4.15454845,56705.0,56704.0,0.001632]
[1725562736948,4.15454845,56705.0,56701.0,0.001632]
[1725562736949,2.324486,56702.0,56701.0,0.001632]
[1725562737199,0.0098,56693.0,56679.0,0.0002]
[1725562737478,0.022,56698.0,56663.0,0.00164]
[1725562737479,1.56092428,56684.0,56678.0,0.1169]
[1725562737713,1.97761757,56684.0,56678.0,0.1169]
[1725562737932,1.97761757,56684.0,56676.0,0.15114]
[1725562737933,2.45345057,56684.0,56676.0,0.15114]
[1725562738177,2.53271013,56684.0,56676.0,0.15134]
[1725562738401,2.45345057,56684.0,56676.0,0.15134]
[1725562738626,2.50621469,56684.0,56676.0,0.15134]
[1725562739071,2.52021469,56684.0,56676.0,0.15134]
[1725562739352,2.46745057,56684.0,56676.0,0.15134]
[1725562739591,2.4809341,56684.0,56676.0,0.15134]
[1725562740049,2.4949341,56684.0,56676.0,0.15134]
[1725562740747,2.1421011,56684.0,56676.0,0.15134]
[1725562740982,2.16975195,56684.0,56676.0,0.15134]
[1725562741255,2.52258495,56684.0,56676.0,0.15114]
[1725562741485,2.93527142,56684.0,56676.0,0.00164]
[1725562741745,1.98098457,56678.0,56676.0,0.00164]
[1725562741969,2.33185457,56678.0,56676.0,0.00164]
[1725562742196,2.50755462,56678.0,56676.0,0.00164]
[1725562742424,2.48250873,56678.0,56676.0,0.00164]
[1725562742900,3.47252673,56678.0,56676.0,0.00164]
[1725562743159,3.00605173,56678.0,56676.0,0.00164]
[1725562743371,2.72852873,56678.0,56676.0,0.00164]
[1725562743595,2.02173873,56678.0,56676.0,0.00164]
[1725562744305,2.03173873,56678.0,56676.0,0.00164]
[1725562745498,2.02173873,56678.0,56676.0,0.00164]
[1725562745750,2.03541345,56678.0,56676.0,0.00164]
[1725562745962,2.04941345,56678.0,56676.0,0.00164]
[1725562746180,2.03941345,56678.0,56676.0,0.00164]
[1725562746404,2.05341345,56678.0,56676.0,0.00164]
[1725562747364,2.02575929,56678.0,56676.0,0.00164]
[1725562747817,1.67288929,56678.0,56676.0,0.00164]
[1725562748029,0.910175,56678.0,56677.0,0.11944]
[1725562748235,0.910175,56678.0,56677.0,0.26284]
[1725562748236,1.263045,56678.0,56677.0,0.26284]
[1725562748883,1.52221457,56678.0,56677.0,0.26284]
[1725562749099,1.53621457,56678.0,56677.0,0.26284]
[1725562749539,1.52221457,56678.0,56677.0,0.26284]
[1725562749743,1.62221457,56678.0,56677.0,0.26284]
[1725562749954,1.63621457,56678.0,56677.0,0.26284]
[1725562750389,1.60821457,56678.0,56677.0,0.26284]
[1725562750596,0.982175,56678.0,56677.0,0.26284]
[1725562750826,0.991175,56678.0,56677.0,0.26284]
[1725562751702,0.009,56678.0,56677.0,0.26284]
[1725562751908,0.185435,56678.0,56677.0,0.26284]
[1725562752122,0.891175,56678.0,56677.0,0.26284]
[1725562756510,1.244045,56678.0,56677.0,0.26284]
[1725562756696,1.244045,56678.0,56677.0,0.00164]
[1725562756697,1.51721457,56678.0,56677.0,0.00164]
[1725562757579,1.87008457,56678.0,56677.0,0.00164]
[1725562757844,1.87008457,56678.0,56661.0,0.0002]
[1725562757845,0.0098,56676.0,56661.0,0.0002]
[1725562758055,0.0098,56676.0,56660.0,0.1236]
[1725562758056,2.48949657,56671.0,56659.0,0.46904]
[1725562758566,2.58949657,56671.0,56659.0,0.00184]
[1725562758802,2.61249657,56671.0,56659.0,0.00184]
[1725562759459,2.61449657,56671.0,56659.0,0.00184]
[1725562759931,2.64049657,56671.0,56659.0,0.00184]
[1725562760358,2.62649657,56671.0,56659.0,0.00184]
[1725562760569,2.64049657,56671.0,56659.0,0.00184]
[1725562760795,2.62649657,56671.0,56659.0,0.00184]
[1725562761317,2.61249657,56671.0,56659.0,0.00184]
[1725562761535,1.72458595,56671.0,56667.0,0.2571]
[1725562761759,2.02575552,56671.0,56667.0,0.2571]
[1725562761990,2.02575552,56671.0,56667.0,0.142]
[1725562762258,2.02575552,56671.0,56665.0,0.0002]
[1725562762259,2.01175552,56671.0,56665.0,0.0002]
[1725562762471,2.02575552,56671.0,56665.0,0.0002]
[1725562762915,1.99775552,56671.0,56665.0,0.0002]
[1725562763132,1.72458595,56671.0,56665.0,0.0002]
[1725562763346,2.02475552,56671.0,56665.0,0.0002]
[1725562763563,2.01075552,56671.0,56665.0,0.0002]
[1725562763829,2.02275552,56671.0,56665.0,0.0002]
[1725562764302,2.01075552,56671.0,56666.0,0.0002]
[1725562764554,2.01075552,56671.0,56663.0,0.25874]
[1725562764555,1.63284152,56671.0,56669.0,0.0002]
[1725562764800,1.347199,56671.0,56670.0,0.15454]
[1725562765230,1.335199,56671.0,56670.0,0.15454]
[1725562765707,1.343199,56671.0,56670.0,0.15454]
[1725562765953,1.61636857,56671.0,56670.0,0.15454]
[1725562766201,1.61536857,56671.0,56670.0,0.15454]
[1725562766411,1.61436857,56671.0,56670.0,0.15454]
[1725562766643,1.61936857,56671.0,56670.0,0.15454]
[1725562767749,1.346199,56671.0,56670.0,0.15454]
[1725562767995,0.993285,56671.0,56670.0,0.27694]
[1725562769171,0.187457,56671.0,56670.0,0.27694]
[1725562769393,0.540371,56671.0,56670.0,0.27694]
[1725562769616,0.893285,56671.0,56670.0,0.27694]
[1725562770535,1.16645457,56671.0,56670.0,0.27694]
[1725562770762,0.893285,56671.0,56670.0,0.27694]
[1725562770975,1.246199,56671.0,56670.0,0.27694]
[1725562776304,0.893285,56671.0,56670.0,0.27694]
[1725562780882,0.888285,56671.0,56670.0,0.27694]
[1725562781095,0.892285,56671.0,56670.0,0.27694]
[1725562781313,0.886285,56671.0,56670.0,0.27694]
[1725562781735,0.891285,56671.0,56670.0,0.27694]
[1725562783556,1.244199,56671.0,56670.0,0.27694]
[1725562783768,0.891285,56671.0,56670.0,0.27694]
[1725562784424,1.244199,56671.0,56670.0,0.27694]
[1725562785061,1.51736857,56671.0,56670.0,0.00184]
[1725562785511,1.244199,56671.0,56670.0,0.00184]
[1725562789777,0.891285,56671.0,56670.0,0.00184]
[1725562790004,1.244199,56671.0,56670.0,0.00184]
[1725562792137,0.891285,56671.0,56670.0,0.14554]
[1725562792372,0.891285,56671.0,56670.0,0.25794]
[1725562794391,0.891285,56671.0,56670.0,0.00184]
[1725562794611,1.244199,56671.0,56670.0,0.00164]
[1725562795040,0.891285,56671.0,56670.0,0.00184]
[1725562796005,1.244199,56671.0,56670.0,0.00184]
[1725562796216,0.891285,56671.0,56670.0,0.00184]
[1725562800743,1.97066758,56671.0,56670.0,0.00164]
[1725562801009,2.10296651,56671.0,56670.0,0.00164]
[1725562801220,2.12132315,56671.0,56670.0,0.00164]
[1725562801446,2.1742529,56671.0,56670.0,0.00164]
[1725562801887,2.1692529,56671.0,56670.0,0.00164]
[1725562802116,2.14159733,56671.0,56670.0,0.00164]
[1725562802372,2.09866758,56671.0,56670.0,0.00164]
[1725562802601,2.1361187,56671.0,56670.0,0.00164]
[1725562802848,2.4890327,56671.0,56670.0,0.00164]
[1725562803070,2.5020327,56671.0,56670.0,0.00164]
[1725562803286,2.61925633,56671.0,56670.0,0.00164]
[1725562803498,2.1341187,56671.0,56670.0,0.00164]
[1725562804176,2.4870327,56671.0,56670.0,0.00164]
[1725562804617,2.4990327,56671.0,56670.0,0.00164]
[1725562805255,2.4970327,56671.0,56670.0,0.00164]
[1725562805469,2.21052668,56671.0,56670.0,0.00164]
[1725562805687,2.10466758,56671.0,56670.0,0.00164]
[1725562805908,2.56345394,56671.0,56670.0,0.00164]
[1725562806401,2.21053994,56671.0,56670.0,0.00164]
[1725562809304,2.21053994,56671.0,56663.0,0.00164]
[1725562809309,1.46600358,56664.0,56663.0,0.00164]
[1725562809525,2.25130641,56664.0,56663.0,0.00164]
[1725562809739,2.37776925,56664.0,56663.0,0.00164]
[1725562809965,2.37430669,56664.0,56663.0,0.00164]
[1725562810180,2.37430587,56664.0,56663.0,0.00164]
[1725562810392,2.37428537,56664.0,56663.0,0.00164]
[1725562810634,2.32257839,56664.0,56663.0,0.00164]
[1725562810847,2.40194367,56664.0,56663.0,0.00164]
[1725562811067,2.40194659,56664.0,56663.0,0.00164]
[1725562811549,1.96962139,56664.0,56663.0,0.00164]
[1725562811980,2.13394899,56664.0,56663.0,0.00164]
[1725562812197,2.14094899,56664.0,56663.0,0.00164]
[1725562812628,2.14894899,56664.0,56663.0,0.00164]
[1725562813734,2.16234993,56664.0,56663.0,0.00164]
[1725562813989,2.73907513,56664.0,56663.0,0.00164]
[1725562814212,2.11233595,56664.0,56663.0,0.00164]
[1725562814460,2.11233595,56664.0,56652.0,0.00164]
[1725562814461,0.292913,56653.0,56652.0,0.00164]
[1725562814687,1.705017,56653.0,56652.0,0.00164]
[1725562814915,1.88434288,56653.0,56652.0,0.00164]
[1725562815129,1.93500659,56653.0,56652.0,0.00164]
[1725562815577,1.85568071,56653.0,56652.0,0.00164]
[1725562816021,1.86368071,56653.0,56652.0,0.00164]
[1725562816455,2.27855028,56653.0,56652.0,0.00164]
[1725562816674,2.01578071,56653.0,56652.0,0.00164]
[1725562816898,2.00678071,56653.0,56652.0,0.00164]
[1725562817133,1.99878071,56653.0,56652.0,0.00164]
[1725562817571,2.0616055,56653.0,56652.0,0.00164]
[1725562817789,2.0516055,56653.0,56652.0,0.00164]
[1725562818227,2.0636055,56653.0,56652.0,0.00164]
[1725562818430,1.99878071,56653.0,56652.0,0.00164]
[1725562818850,2.02178071,56653.0,56652.0,0.00164]
[1725562819534,2.01178071,56653.0,56652.0,0.00164]
[1725562819742,2.02378071,56653.0,56652.0,0.00164]
[1725562820364,2.03578071,56653.0,56652.0,0.00164]
[1725562821968,2.04876936,56653.0,56652.0,0.00164]
[1725562822208,2.01176936,56653.0,56652.0,0.00164]
[1725562822425,2.02576936,56653.0,56652.0,0.00164]
[1725562823349,2.02576936,56653.0,56622.0,0.4672]
[1725562823350,1.86265118,56644.0,56635.0,0.0002]
[1725562823573,1.96265118,56644.0,56641.0,0.2521]
[1725562823995,2.0133199,56644.0,56641.0,0.2521]
[1725562824653,2.03176418,56644.0,56641.0,0.2521]
[1725562824869,2.10255118,56644.0,56641.0,0.2521]
[1725562825298,2.1161204,56644.0,56641.0,0.2521]
[1725562825517,2.1241204,56644.0,56641.0,0.2521]
[1725562825723,2.1241204,56644.0,56640.0,0.0002]
[1725562826566,2.1331204,56644.0,56640.0,0.0002]
[1725562826806,2.1331204,56644.0,56639.0,0.0002]
[1725562829025,1.4555875,56644.0,56642.0,0.0002]
[1725562829486,1.4555875,56644.0,56638.0,0.1216]
[1725562829487,0.63585428,56644.0,56643.0,0.2723981]
[1725562829733,0.03544428,56644.0,56643.0,0.2723981]
[1725562829969,0.02644428,56644.0,56643.0,0.2723981]
[1725562830202,0.02744428,56644.0,56643.0,0.2723981]
[1725562830671,0.02544428,56644.0,56643.0,0.2723981]
[1725562830898,0.01844428,56644.0,56643.0,0.2723981]
[1725562831348,0.02044428,56644.0,56643.0,0.2723981]
[1725562831561,0.01844428,56644.0,56643.0,0.2723981]
[1725562831998,0.19598528,56644.0,56643.0,0.2723981]
[1725562832219,0.19798528,56644.0,56643.0,0.2723981]
[1725562832675,0.01944428,56644.0,56643.0,0.2723981]
[1725562832899,0.01944428,56644.0,56643.0,0.2743981]
[1725562833141,0.01944428,56644.0,56643.0,1.16064872]
[1725562833377,0.01944428,56644.0,56643.0,1.51173672]
[1725562833856,0.01844428,56644.0,56643.0,1.51373672]
[1725562834085,0.01844428,56644.0,56643.0,1.1571181]
[1725562834311,0.01844428,56644.0,56643.0,1.1581181]
[1725562834543,0.01844428,56644.0,56643.0,1.1571181]
[1725562835237,0.01944428,56644.0,56643.0,0.8050301]
[1725562835661,0.01844428,56644.0,56643.0,1.1551181]
[1725562835872,0.01844428,56644.0,56643.0,1.1561181]
[1725562836525,0.01844428,56644.0,56643.0,1.1551181]
[1725562837025,0.02044428,56644.0,56643.0,1.1571181]
[1725562837467,0.02044428,56644.0,56643.0,0.8040301]
[1725562838792,0.02044428,56644.0,56643.0,0.8056641]
[1725562839679,0.19698528,56644.0,56643.0,0.2760321]
[1725562839899,0.55006728,56644.0,56643.0,0.2760321]
[1725562840612,0.55006728,56644.0,56643.0,0.0149321]
[1725562840613,1.25623128,56644.0,56643.0,0.0149321]
[1725562840858,1.25623128,56644.0,56643.0,0.0147321]
[1725562840859,1.39773128,56644.0,56643.0,0.0147321]
[1725562841549,1.25623128,56644.0,56643.0,0.0147321]
[1725562841768,1.25423128,56644.0,56643.0,0.0127321]
[1725562842230,1.25523128,56644.0,56643.0,0.0137321]
[1725562842678,1.25423128,56644.0,56643.0,0.0127321]
[1725562843104,1.26756067,56644.0,56643.0,0.0127321]
[1725562843542,1.26756067,56644.0,56643.0,0.0137321]
[1725562843761,1.26756067,56644.0,56643.0,0.0147321]
[1725562843990,1.26756067,56644.0,56643.0,0.0137321]
[1725562844209,0.01844428,56644.0,56643.0,0.8026641]
[1725562844431,0.19498528,56644.0,56643.0,0.2740321]
[1725562844696,0.54806728,56644.0,56643.0,0.1608321]
[1725562844913,0.54806728,56644.0,56643.0,0.0149321]
[1725562844914,1.25423128,56644.0,56643.0,0.0149321]
[1725562845133,1.25423128,56644.0,56643.0,0.0129321]
[1725562845380,1.60731328,56644.0,56643.0,0.0137321]
[1725562845612,1.70731328,56644.0,56643.0,0.0137321]
[1725562845840,1.85461328,56644.0,56643.0,0.0127321]
[1725562846066,1.89112772,56644.0,56643.0,0.0127321]
[1725562846305,2.00852772,56644.0,56643.0,0.0137321]
[1725562846551,2.00852772,56644.0,56626.0,0.00164]
[1725562846552,0.11,56632.0,56626.0,0.00184]
[1725562846790,0.80356418,56627.0,56626.0,0.00164]
[1725562847007,1.64664018,56627.0,56626.0,0.00164]
[1725562847389,2.14127246,56627.0,56626.0,0.00164]
[1725562847395,2.25737246,56627.0,56626.0,0.00164]
[1725562847818,2.25737246,56627.0,56626.0,0.00264]
[1725562847990,2.25737246,56627.0,56626.0,0.00164]
[1725562848168,2.40312646,56627.0,56626.0,0.00164]
[1725562848389,3.74526545,56627.0,56626.0,0.00164]
[1725562848609,3.66623017,56627.0,56626.0,0.00164]
[1725562848827,3.40152814,56627.0,56626.0,0.00164]
[1725562849044,3.33649017,56627.0,56626.0,0.00164]
[1725562849471,3.32249017,56627.0,56626.0,0.00164]
[1725562849675,2.30445347,56627.0,56626.0,0.00164]
[1725562849897,2.31825347,56627.0,56626.0,0.00164]
[1725562850381,2.32825347,56627.0,56626.0,0.00164]
[1725562850584,2.31245347,56627.0,56626.0,0.00164]
[1725562850743,2.32245347,56627.0,56626.0,0.00164]
[1725562850939,2.28945347,56627.0,56626.0,0.00164]
[1725562851141,1.79956547,56627.0,56626.0,0.00164]
[1725562851346,1.78556547,56627.0,56626.0,0.00164]
[1725562851745,1.79956547,56627.0,56626.0,0.00164]
[1725562852542,1.43268329,56627.0,56626.0,0.00164]
[1725562852742,1.70646547,56627.0,56626.0,0.00164]
[1725562853798,1.67038446,56627.0,56626.0,0.00184]
[1725562854654,1.31719646,56627.0,56626.0,0.00184]
[1725562854856,1.04341428,56627.0,56626.0,0.00184]
[1725562855480,1.31719646,56627.0,56626.0,0.00184]
[1725562855688,1.30319646,56627.0,56626.0,0.00184]
[1725562855903,1.62838446,56627.0,56626.0,0.00184]
[1725562856125,1.63838446,56627.0,56626.0,0.00184]
[1725562856333,1.64738446,56627.0,56626.0,0.00184]
[1725562857014,1.29419646,56627.0,56626.0,0.00184]
[1725562857245,0.03744428,56627.0,56626.0,0.14144]
[1725562857503,0.02744428,56627.0,56626.0,0.789531]
[1725562857725,0.02744428,56627.0,56626.0,1.142725]
[1725562857955,0.03644428,56627.0,56626.0,1.142725]
[1725562858168,0.03644428,56627.0,56626.0,1.505919]
[1725562858384,0.01844428,56627.0,56626.0,1.507919]
[1725562858616,0.01844428,56627.0,56626.0,1.505919]
[1725562858849,0.02044428,56627.0,56626.0,0.791531]
[1725562859062,0.19603828,56627.0,56626.0,0.26174]
[1725562859282,0.19503828,56627.0,56626.0,0.25974]
[1725562859512,0.19503828,56627.0,56626.0,0.26374]
[1725562859513,0.177594,56627.0,56626.0,0.26374]
[1725562859735,0.001,56627.0,56626.0,0.25974]
[1725562860199,0.178594,56627.0,56626.0,0.26374]
[1725562860424,0.002,56627.0,56626.0,0.14544]
[1725562860659,0.88497,56627.0,56626.0,0.00564]
[1725562860877,1.356558,56627.0,56626.0,0.00564]
[1725562861123,1.357558,56627.0,56626.0,0.00664]
[1725562861341,1.357558,56627.0,56626.0,0.00684]
[1725562861573,1.356558,56627.0,56626.0,0.00564]
[1725562861996,1.377558,56627.0,56626.0,0.00264]
[1725562862430,1.378558,56627.0,56626.0,0.00164]
[1725562862901,1.239158,56627.0,56626.0,0.00184]
[1725562865624,1.692346,56627.0,56626.0,0.00164]
[1725562865861,1.362158,56627.0,56626.0,0.00164]
[1725562866094,1.362158,56627.0,56626.0,0.00184]
[1725562866340,0.98597,56627.0,56626.0,0.00184]
[1725562866567,0.632782,56627.0,56626.0,0.00184]
[1725562867032,1.35760228,56627.0,56626.0,0.00184]
[1725562867457,1.00241428,56627.0,56626.0,0.00184]
[1725562867934,1.00441428,56627.0,56626.0,0.00184]
[1725562868373,1.00241428,56627.0,56626.0,0.00184]
[1725562868821,1.00141428,56627.0,56626.0,0.00184]
[1725562869043,1.00141428,56627.0,56626.0,0.00284]
[1725562869701,1.35460228,56627.0,56626.0,0.00284]
[1725562870363,1.49390228,56627.0,56626.0,0.00284]
[1725562870580,1.60490228,56627.0,56626.0,0.00284]
[1725562871458,1.35460228,56627.0,56626.0,0.00284]
[1725562872530,1.3679089,56627.0,56626.0,0.00284]
[1725562877582,1.7210969,56627.0,56626.0,0.00284]
[1725562878698,1.3679089,56627.0,56626.0,0.00284]
[1725562879324,1.7210969,56627.0,56626.0,0.00284]
[1725562880004,1.3679089,56627.0,56626.0,0.00284]
[1725562881066,1.7210969,56627.0,56626.0,0.00284]
[1725562881698,1.3679089,56627.0,56626.0,0.00284]
[1725562882563,1.3679089,56627.0,56626.0,0.26654]
[1725562882787,1.3679089,56627.0,56626.0,0.00284]
[1725562883264,1.9832969,56627.0,56626.0,0.00264]
[1725562883685,1.8345969,56627.0,56626.0,0.00264]
[1725562884168,1.3909089,56627.0,56626.0,0.00264]
[1725562884604,1.78282277,56627.0,56626.0,0.00264]
[1725562887469,1.91952277,56627.0,56626.0,0.00264]
[1725562889445,1.3510149,56627.0,56626.0,0.00264]
[1725562889699,1.5276089,56627.0,56626.0,0.00264]
[1725562890152,1.8807969,56627.0,56626.0,0.00264]
[1725562890392,2.5533619,56627.0,56626.0,0.00264]
[1725562890627,1.9941969,56627.0,56626.0,0.00264]
[1725562891519,1.9961969,56627.0,56626.0,0.00164]
[1725562891772,2.05003635,56627.0,56626.0,0.00164]
[1725562892483,2.76621235,56627.0,56626.0,0.00164]
[1725562892710,2.81587977,56627.0,56626.0,0.00164]